[Event "*** MasterClass Titled Tuesday Blitz"]
[Site "Chess.com"]
[Date "2017.12.05"]
[Round "5"]
[White "Hasangatin_Ramil"]
[Black "StellarChessPro"]
[Result "0-1"]
[WhiteElo "2392"]
[BlackElo "2334"]
[TimeControl "180+2"]
[EndTime "15:15:02 PST"]
[Termination "StellarChessPro won by checkmate"]

1. e4 {[%clk 0:03:01.9]} 1... Nc6 {[%clk 0:03:00.1]} 2. Bb5 {[%clk 0:03:02]}
2... a6 {[%clk 0:03:00.8]} 3. Bxc6 {[%clk 0:03:02.9]} 3... dxc6 {[%clk
0:03:01.6]} 4. d3 {[%clk 0:03:04.1]} 4... e5 {[%clk 0:03:02.5]} 5. f4 {[%clk
0:03:04.5]} 5... exf4 {[%clk 0:03:02.3]} 6. Bxf4 {[%clk 0:03:04.8]} 6... Ne7
{[%clk 0:03:03.5]} 7. Nf3 {[%clk 0:03:05.7]} 7... Ng6 {[%clk 0:03:04.7]} 8. Be3
{[%clk 0:03:06.7]} 8... Bd6 {[%clk 0:03:05.5]} 9. Nbd2 {[%clk 0:03:06.6]} 9...
O-O {[%clk 0:03:05.8]} 10. O-O {[%clk 0:03:06.8]} 10... Ne5 {[%clk 0:03:00.2]}
11. Nxe5 {[%clk 0:02:59.9]} 11... Bxe5 {[%clk 0:03:02.1]} 12. Nc4 {[%clk
0:03:01.2]} 12... Bd4 {[%clk 0:03:01.7]} 13. Qf3 {[%clk 0:02:59.5]} 13... Be6
{[%clk 0:03:01.3]} 14. Bxd4 {[%clk 0:02:57.5]} 14... Qxd4+ {[%clk 0:03:03.2]}
15. Qe3 {[%clk 0:02:58.4]} 15... c5 {[%clk 0:02:46.5]} 16. c3 {[%clk 0:02:46.3]}
16... Qd8 {[%clk 0:02:37.1]} 17. b3 {[%clk 0:02:40.3]} 17... Bxc4 {[%clk
0:02:35.9]} 18. bxc4 {[%clk 0:02:40.8]} 18... Qe7 {[%clk 0:02:37.8]} 19. Rf5
{[%clk 0:02:35.3]} 19... b6 {[%clk 0:02:38]} 20. Raf1 {[%clk 0:02:35.7]} 20...
Rad8 {[%clk 0:02:36.3]} 21. Rd5 {[%clk 0:02:30.4]} 21... c6 {[%clk 0:02:34.7]}
22. Rxd8 {[%clk 0:02:25.1]} 22... Rxd8 {[%clk 0:02:36.6]} 23. d4 {[%clk
0:02:26.1]} 23... cxd4 {[%clk 0:02:35.8]} 24. cxd4 {[%clk 0:02:28]} 24... Qb4
{[%clk 0:02:36.6]} 25. Qd3 {[%clk 0:02:25.1]} 25... b5 {[%clk 0:02:35]} 26. Rc1
{[%clk 0:02:19]} 26... h6 {[%clk 0:02:32.5]} 27. c5 {[%clk 0:02:17.1]} 27...
Qxd4+ {[%clk 0:02:29.2]} 28. Qxd4 {[%clk 0:02:14.7]} 28... Rxd4 {[%clk
0:02:31.1]} 29. Kf2 {[%clk 0:01:31.9]} 29... Rxe4 {[%clk 0:02:29.5]} 30. Kf3
{[%clk 0:01:32.6]} 30... Re5 {[%clk 0:02:30.2]} 31. g4 {[%clk 0:01:30.9]} 31...
g6 {[%clk 0:02:28.3]} 32. h4 {[%clk 0:01:31.6]} 32... Kg7 {[%clk 0:02:29.6]} 33.
Kf4 {[%clk 0:01:31.8]} 33... Rd5 {[%clk 0:02:30.3]} 34. Ke4 {[%clk 0:01:31.2]}
34... g5 {[%clk 0:02:31.6]} 35. h5 {[%clk 0:01:31.5]} 35... a5 {[%clk
0:02:28.8]} 36. a3 {[%clk 0:01:32.3]} 36... a4 {[%clk 0:02:29.4]} 37. Rc2 {[%clk
0:01:31.6]} 37... Kf6 {[%clk 0:02:28.8]} 38. Rc1 {[%clk 0:01:17.7]} 38... Ke6
{[%clk 0:02:29.7]} 39. Rc2 {[%clk 0:01:18.6]} 39... f5+ {[%clk 0:02:30.8]} 40.
gxf5+ {[%clk 0:01:18.4]} 40... Rxf5 {[%clk 0:02:32.6]} 41. Ke3 {[%clk
0:01:15.2]} 41... g4 {[%clk 0:02:27.9]} 42. Rg2 {[%clk 0:01:09.5]} 42... Rxh5
{[%clk 0:02:27.5]} 43. Rxg4 {[%clk 0:01:03.1]} 43... Rxc5 {[%clk 0:02:28.3]} 44.
Rg6+ {[%clk 0:01:04.3]} 44... Kd5 {[%clk 0:02:27.6]} 45. Kd3 {[%clk 0:01:04.1]}
45... Rc1 {[%clk 0:02:25.3]} 46. Rxh6 {[%clk 0:01:04.6]} 46... Ra1 {[%clk
0:02:25.4]} 47. Rh5+ {[%clk 0:01:03.9]} 47... Kd6 {[%clk 0:02:26.4]} 48. Rh6+
{[%clk 0:01:01.4]} 48... Kc5 {[%clk 0:02:27.3]} 49. Rh5+ {[%clk 0:01:01]} 49...
Kb6 {[%clk 0:02:28.6]} 50. Kc2 {[%clk 0:01:00.9]} 50... Rxa3 {[%clk 0:02:29.5]}
51. Kb2 {[%clk 0:01:02.2]} 51... Rg3 {[%clk 0:02:30.3]} 52. Ka2 {[%clk
0:01:02.2]} 52... b4 {[%clk 0:02:30.9]} 53. Kb2 {[%clk 0:01:02.8]} 53... Rg2+
{[%clk 0:02:31.8]} 54. Kb1 {[%clk 0:01:03.3]} 54... c5 {[%clk 0:02:32.7]} 55.
Rh8 {[%clk 0:01:04.1]} 55... Kb5 {[%clk 0:02:33.8]} 56. Rh4 {[%clk 0:01:05.5]}
56... a3 {[%clk 0:02:34.5]} 57. Rf4 {[%clk 0:01:05.7]} 57... c4 {[%clk
0:02:35.1]} 58. Rf1 {[%clk 0:01:06.3]} 58... Ka4 {[%clk 0:02:35.9]} 59. Re1
{[%clk 0:01:07.2]} 59... Kb3 {[%clk 0:02:36.4]} 60. Rg1 {[%clk 0:01:08.2]} 60...
Rxg1# {[%clk 0:02:36.9]} 0-1

[Event "*** MasterClass Titled Tuesday Blitz"]
[Site "Chess.com"]
[Date "2017.12.05"]
[Round "5"]
[White "Diwi89"]
[Black "TregubovP"]
[Result "1-0"]
[WhiteElo "2723"]
[BlackElo "2498"]
[TimeControl "180+2"]
[EndTime "15:15:03 PST"]
[Termination "Diwi89 won by resignation"]

1. e4 {[%clk 0:03:00.9]} 1... c5 {[%clk 0:02:59]} 2. Nf3 {[%clk 0:03:02.2]} 2...
e6 {[%clk 0:02:59.6]} 3. d4 {[%clk 0:03:02.6]} 3... cxd4 {[%clk 0:03:00.7]} 4.
Nxd4 {[%clk 0:03:03.7]} 4... Nc6 {[%clk 0:03:02.3]} 5. Nc3 {[%clk 0:03:03.8]}
5... Nf6 {[%clk 0:03:03.8]} 6. Nxc6 {[%clk 0:03:02.3]} 6... bxc6 {[%clk
0:03:04.8]} 7. e5 {[%clk 0:03:03.3]} 7... Nd5 {[%clk 0:03:06.3]} 8. Ne4 {[%clk
0:03:04]} 8... Qc7 {[%clk 0:03:07.1]} 9. f4 {[%clk 0:03:05.3]} 9... Qb6 {[%clk
0:03:08.4]} 10. c4 {[%clk 0:03:03.1]} 10... Bb4+ {[%clk 0:03:08.8]} 11. Ke2
{[%clk 0:03:04.6]} 11... f5 {[%clk 0:03:10.1]} 12. Nf2 {[%clk 0:03:04.5]} 12...
Ne7 {[%clk 0:03:06.8]} 13. Nd3 {[%clk 0:03:03]} 13... Bc5 {[%clk 0:02:49]} 14.
Nxc5 {[%clk 0:03:02.2]} 14... Qxc5 {[%clk 0:02:49.3]} 15. b3 {[%clk 0:03:03.5]}
15... Qb6 {[%clk 0:02:32.4]} 16. Be3 {[%clk 0:03:03.6]} 16... c5 {[%clk
0:02:32.2]} 17. Kf2 {[%clk 0:03:04.1]} 17... Bb7 {[%clk 0:02:32.3]} 18. b4
{[%clk 0:03:05.4]} 18... Rc8 {[%clk 0:02:30]} 19. bxc5 {[%clk 0:03:03.5]} 19...
Qa5 {[%clk 0:02:24]} 20. Rb1 {[%clk 0:02:58.8]} 20... Bc6 {[%clk 0:02:20.1]} 21.
Be2 {[%clk 0:02:58.5]} 21... O-O {[%clk 0:02:14.8]} 22. Qd2 {[%clk 0:02:53.1]}
22... Qxd2 {[%clk 0:01:58.6]} 23. Bxd2 {[%clk 0:02:55]} 23... Be4 {[%clk
0:01:59.5]} 24. Rb3 {[%clk 0:02:56]} 24... Nc6 {[%clk 0:01:54.5]} 25. Bc3 {[%clk
0:02:56.8]} 25... h6 {[%clk 0:01:46.3]} 26. Bf3 {[%clk 0:02:57.6]} 26... g5
{[%clk 0:01:44.6]} 27. g3 {[%clk 0:02:58.1]} 27... Kh7 {[%clk 0:01:41]} 28. Bxe4
{[%clk 0:02:56.1]} 28... fxe4 {[%clk 0:01:41]} 29. Ke3 {[%clk 0:02:57.6]} 29...
gxf4+ {[%clk 0:01:41.3]} 30. gxf4 {[%clk 0:02:58.4]} 30... Rf5 {[%clk
0:01:38.5]} 31. Kxe4 {[%clk 0:02:59]} 31... Rg8 {[%clk 0:01:36.8]} 32. Rb2
{[%clk 0:02:55.4]} 32... Rg4 {[%clk 0:01:35.7]} 33. Rf1 {[%clk 0:02:56.3]} 33...
Rh4 {[%clk 0:01:30.5]} 34. Be1 {[%clk 0:02:54.3]} 34... Rh3 {[%clk 0:01:25.3]}
35. Bg3 {[%clk 0:02:54.6]} 35... Nxe5 {[%clk 0:01:24.8]} 36. Rd1 {[%clk
0:02:46.9]} 36... Nxc4 {[%clk 0:01:12.3]} 37. Rxd7+ {[%clk 0:02:47.5]} 37... Kg6
{[%clk 0:01:13.8]} 38. Rbb7 {[%clk 0:02:39.4]} 38... Rxc5 {[%clk 0:01:09.1]} 39.
Kf3 {[%clk 0:02:40.6]} 39... Kh5 {[%clk 0:00:44.2]} 40. Kg2 {[%clk 0:02:40.6]}
40... Rxg3+ {[%clk 0:00:37.9]} 41. hxg3 {[%clk 0:02:41.3]} 41... Ne3+ {[%clk
0:00:36.2]} 42. Kh3 {[%clk 0:02:42.3]} 42... Ng4 {[%clk 0:00:30.7]} 43. Rg7
{[%clk 0:02:39.8]} 43... Nf2+ {[%clk 0:00:30.9]} 44. Kg2 {[%clk 0:02:40.1]}
44... Ne4 {[%clk 0:00:31.3]} 45. Rxa7 {[%clk 0:02:39]} 45... Rc2+ {[%clk
0:00:31.6]} 46. Kf3 {[%clk 0:02:40.1]} 46... Nd2+ {[%clk 0:00:32.2]} 47. Ke2
{[%clk 0:02:39.4]} 47... Nb1+ {[%clk 0:00:30.2]} 48. Kd3 {[%clk 0:02:38.8]}
48... Rc3+ {[%clk 0:00:28]} 49. Kd4 {[%clk 0:02:40]} 49... Rf3 {[%clk
0:00:28.6]} 50. Ra5+ {[%clk 0:02:40.3]} 1-0

[Event "*** MasterClass Titled Tuesday Blitz"]
[Site "Chess.com"]
[Date "2017.12.05"]
[Round "5"]
[White "DiogenesSinopeus"]
[Black "tteshan"]
[Result "0-1"]
[WhiteElo "2365"]
[BlackElo "2022"]
[TimeControl "180+2"]
[EndTime "15:15:27 PST"]
[Termination "tteshan won on time"]

1. e4 {[%clk 0:03:01.9]} 1... c5 {[%clk 0:03:00.9]} 2. Nf3 {[%clk 0:03:02.7]}
2... e6 {[%clk 0:03:01.9]} 3. d4 {[%clk 0:03:03.4]} 3... cxd4 {[%clk 0:03:03.3]}
4. Nxd4 {[%clk 0:03:05.3]} 4... a6 {[%clk 0:03:04.8]} 5. Nc3 {[%clk 0:03:05.8]}
5... Qc7 {[%clk 0:03:05]} 6. Be2 {[%clk 0:03:06.5]} 6... Nf6 {[%clk 0:03:05.1]}
7. f4 {[%clk 0:03:06.3]} 7... Bb4 {[%clk 0:03:05.2]} 8. O-O {[%clk 0:02:59.5]}
8... Bxc3 {[%clk 0:03:00.2]} 9. bxc3 {[%clk 0:03:01.4]} 9... Qxc3 {[%clk
0:02:58]} 10. Rb1 {[%clk 0:02:45.4]} 10... Qc7 {[%clk 0:02:52.9]} 11. Ba3 {[%clk
0:02:42.2]} 11... Nxe4 {[%clk 0:02:51.3]} 12. Qd3 {[%clk 0:02:07.5]} 12... Nc3
{[%clk 0:02:46.5]} 13. Rbe1 {[%clk 0:02:07.9]} 13... Nxe2+ {[%clk 0:02:43.2]}
14. Rxe2 {[%clk 0:02:07.4]} 14... d6 {[%clk 0:02:09.5]} 15. Nf5 {[%clk
0:01:47.7]} 15... O-O {[%clk 0:02:03.8]} 16. Bxd6 {[%clk 0:01:07.7]} 16... Qb6+
{[%clk 0:02:04]} 17. Kh1 {[%clk 0:00:49.8]} 17... exf5 {[%clk 0:01:54.1]} 18.
Bxf8 {[%clk 0:00:48.2]} 18... Be6 {[%clk 0:01:38.6]} 19. Qd6 {[%clk 0:00:16.4]}
19... Nc6 {[%clk 0:01:32.3]} 20. Be7 {[%clk 0:00:17.4]} 20... Bc4 {[%clk
0:01:18.9]} 21. Ree1 {[%clk 0:00:08.2]} 21... Bxf1 {[%clk 0:01:19.5]} 22. Rxf1
{[%clk 0:00:10.1]} 22... Re8 {[%clk 0:01:17.7]} 23. Bh4 {[%clk 0:00:08.9]} 23...
Qd4 {[%clk 0:01:10.6]} 24. Qc7 {[%clk 0:00:07.1]} 24... Qc4 {[%clk 0:01:07.4]}
25. Rg1 {[%clk 0:00:04.4]} 25... Qxa2 {[%clk 0:00:58.9]} 26. Qxb7 {[%clk
0:00:03]} 26... Qxc2 {[%clk 0:00:58.4]} 0-1

[Event "*** MasterClass Titled Tuesday Blitz"]
[Site "Chess.com"]
[Date "2017.12.05"]
[Round "5"]
[White "HolyInquisitor0001"]
[Black "MateusViageiro"]
[Result "0-1"]
[WhiteElo "1659"]
[BlackElo "2179"]
[TimeControl "180+2"]
[EndTime "15:15:28 PST"]
[Termination "MateusViageiro won by resignation"]

1. e4 {[%clk 0:02:57.5]} 1... c5 {[%clk 0:02:59.4]} 2. Nc3 {[%clk 0:02:53.9]}
2... d6 {[%clk 0:03:00]} 3. g3 {[%clk 0:02:54.6]} 3... e6 {[%clk 0:03:00.6]} 4.
Bg2 {[%clk 0:02:55.5]} 4... Nf6 {[%clk 0:03:01]} 5. Nge2 {[%clk 0:02:55]} 5...
Nc6 {[%clk 0:03:02]} 6. O-O {[%clk 0:02:55.6]} 6... Be7 {[%clk 0:03:03.1]} 7. h3
{[%clk 0:02:53.8]} 7... a6 {[%clk 0:03:04.2]} 8. d3 {[%clk 0:02:51.1]} 8... Qc7
{[%clk 0:03:05]} 9. f4 {[%clk 0:02:48.3]} 9... b5 {[%clk 0:03:05.6]} 10. Be3
{[%clk 0:02:39.5]} 10... Bb7 {[%clk 0:03:06.5]} 11. Qd2 {[%clk 0:02:34.5]} 11...
O-O {[%clk 0:03:06.3]} 12. Rae1 {[%clk 0:02:31.6]} 12... Rfd8 {[%clk 0:03:07.1]}
13. g4 {[%clk 0:02:29]} 13... b4 {[%clk 0:03:06.7]} 14. Nd1 {[%clk 0:02:28.7]}
14... d5 {[%clk 0:03:06.8]} 15. e5 {[%clk 0:02:28.2]} 15... Nd7 {[%clk
0:03:04.1]} 16. g5 {[%clk 0:02:16.7]} 16... g6 {[%clk 0:03:02.8]} 17. h4 {[%clk
0:02:15.4]} 17... d4 {[%clk 0:03:02.4]} 18. Bf2 {[%clk 0:02:15.3]} 18... Na7
{[%clk 0:03:00.2]} 19. Bxb7 {[%clk 0:02:07.4]} 19... Qxb7 {[%clk 0:03:00.9]} 20.
Ng3 {[%clk 0:02:08.8]} 20... Nb6 {[%clk 0:02:59.6]} 21. Ne4 {[%clk 0:01:54.2]}
21... Nd5 {[%clk 0:03:00.5]} 22. Kh2 {[%clk 0:01:31.5]} 22... Nb5 {[%clk
0:02:57.1]} 23. Rh1 {[%clk 0:01:24.8]} 23... a5 {[%clk 0:02:47]} 24. Kg3 {[%clk
0:01:24.4]} 24... a4 {[%clk 0:02:45.4]} 25. h5 {[%clk 0:01:18.2]} 25... a3
{[%clk 0:02:46.5]} 26. b3 {[%clk 0:01:16]} 26... Ndc3 {[%clk 0:02:45.5]} 27.
Ndxc3 {[%clk 0:01:11.3]} 27... Nxc3 {[%clk 0:02:32.1]} 28. Nxc3 {[%clk
0:00:57.7]} 28... dxc3 {[%clk 0:02:32.8]} 29. Qe2 {[%clk 0:00:55.8]} 29... Qd5
{[%clk 0:02:27.4]} 30. Qg4 {[%clk 0:00:53.5]} 30... Rd7 {[%clk 0:02:23.7]} 31.
Qh4 {[%clk 0:00:47.8]} 31... Bd8 {[%clk 0:02:21]} 32. hxg6 {[%clk 0:00:47.8]}
32... fxg6 {[%clk 0:02:21.5]} 33. Qg4 {[%clk 0:00:38.2]} 33... Rf7 {[%clk
0:02:21]} 34. Be3 {[%clk 0:00:33.1]} 34... Bc7 {[%clk 0:02:18.3]} 35. Rh4 {[%clk
0:00:32]} 35... Raf8 {[%clk 0:02:16.4]} 36. Reh1 {[%clk 0:00:28.6]} 36... Bxe5
{[%clk 0:02:17.3]} 37. Rxh7 {[%clk 0:00:14.1]} 37... Rxh7 {[%clk 0:02:17.2]} 38.
Rxh7 {[%clk 0:00:14.6]} 38... Kxh7 {[%clk 0:02:16.3]} 39. Qh4+ {[%clk
0:00:13.3]} 39... Kg8 {[%clk 0:02:16.3]} 40. fxe5 {[%clk 0:00:12.9]} 40... Qxe5+
{[%clk 0:02:16.5]} 41. Bf4 {[%clk 0:00:10.8]} 41... Qe1+ {[%clk 0:02:16.5]} 42.
Kg4 {[%clk 0:00:11.2]} 42... Rxf4+ {[%clk 0:02:14.5]} 0-1

[Event "*** MasterClass Titled Tuesday Blitz"]
[Site "Chess.com"]
[Date "2017.12.05"]
[Round "5"]
[White "hhbcd_grob_bes"]
[Black "MultiWebCreation"]
[Result "1-0"]
[WhiteElo "1488"]
[BlackElo "1334"]
[TimeControl "180+2"]
[EndTime "15:15:30 PST"]
[Termination "hhbcd_grob_bes won on time"]

1. e4 {[%clk 0:03:01.9]} 1... e5 {[%clk 0:02:47.4]} 2. Nf3 {[%clk 0:03:00.7]}
2... Nc6 {[%clk 0:02:48.1]} 3. d4 {[%clk 0:03:01.7]} 3... exd4 {[%clk
0:02:48.2]} 4. Nxd4 {[%clk 0:03:02.4]} 4... Nxd4 {[%clk 0:02:49.7]} 5. Qxd4
{[%clk 0:03:03.7]} 5... d6 {[%clk 0:02:51.1]} 6. Nc3 {[%clk 0:03:04.7]} 6... Be7
{[%clk 0:02:48.8]} 7. Bc4 {[%clk 0:03:05.6]} 7... Nf6 {[%clk 0:02:48.8]} 8. Be3
{[%clk 0:03:03.5]} 8... O-O {[%clk 0:02:48.5]} 9. O-O-O {[%clk 0:03:04]} 9...
Ng4 {[%clk 0:02:38.8]} 10. f3 {[%clk 0:03:02.7]} 10... Nxe3 {[%clk 0:02:38]} 11.
Qxe3 {[%clk 0:03:04.1]} 11... h6 {[%clk 0:02:35]} 12. Kb1 {[%clk 0:03:03.3]}
12... c6 {[%clk 0:02:33.2]} 13. g4 {[%clk 0:03:01.8]} 13... Bg5 {[%clk
0:02:27.5]} 14. Qf2 {[%clk 0:02:52.7]} 14... Qf6 {[%clk 0:02:18.8]} 15. h4
{[%clk 0:02:51.1]} 15... Bf4 {[%clk 0:02:16.8]} 16. Rhg1 {[%clk 0:02:47]} 16...
b5 {[%clk 0:01:58.8]} 17. Bb3 {[%clk 0:02:35.4]} 17... Qe7 {[%clk 0:01:51.6]}
18. Ne2 {[%clk 0:02:30.9]} 18... g5 {[%clk 0:01:37.7]} 19. hxg5 {[%clk
0:02:15.5]} 19... Bxg5 {[%clk 0:01:31.6]} 20. f4 {[%clk 0:02:06.5]} 20... Qf6
{[%clk 0:00:55.2]} 21. Qh2 {[%clk 0:01:48.2]} 21... Bxf4 {[%clk 0:00:51.6]} 22.
Qxf4 {[%clk 0:01:44.4]} 22... Qxf4 {[%clk 0:00:39.4]} 23. Nxf4 {[%clk
0:01:45.1]} 23... Bb7 {[%clk 0:00:23.4]} 24. g5 {[%clk 0:01:42.9]} 24... Kh7
{[%clk 0:00:12.1]} 25. Rxd6 {[%clk 0:01:38.1]} 25... hxg5 {[%clk 0:00:07.6]} 26.
Rxg5 {[%clk 0:01:28.1]} 26... Rad8 {[%clk 0:00:06]} 27. Rh5+ {[%clk 0:01:12.2]}
27... Kg7 {[%clk 0:00:02.1]} 28. Rxd8 {[%clk 0:01:06.9]} 28... Rxd8 {[%clk
0:00:04]} 29. c3 {[%clk 0:01:05.8]} 29... c5 {[%clk 0:00:02.8]} 30. Nd5 {[%clk
0:01:01.4]} 1-0

[Event "*** MasterClass Titled Tuesday Blitz"]
[Site "Chess.com"]
[Date "2017.12.05"]
[Round "5"]
[White "robbykevlishvili"]
[Black "Khamrakulov_Djurabek"]
[Result "1-0"]
[WhiteElo "2424"]
[BlackElo "2660"]
[TimeControl "180+2"]
[EndTime "15:15:42 PST"]
[Termination "robbykevlishvili won by resignation"]

1. e4 {[%clk 0:02:59.6]} 1... c6 {[%clk 0:03:00.6]} 2. d4 {[%clk 0:02:59.6]}
2... d5 {[%clk 0:03:01.7]} 3. e5 {[%clk 0:03:01.1]} 3... Bf5 {[%clk 0:03:02]} 4.
Nf3 {[%clk 0:03:01.8]} 4... e6 {[%clk 0:03:02.5]} 5. Be2 {[%clk 0:03:02.3]} 5...
Ne7 {[%clk 0:03:03.4]} 6. O-O {[%clk 0:03:03]} 6... h6 {[%clk 0:03:04.2]} 7.
Nbd2 {[%clk 0:03:03]} 7... Nd7 {[%clk 0:03:05.1]} 8. Nb3 {[%clk 0:03:03.1]} 8...
Qc7 {[%clk 0:03:05.7]} 9. a4 {[%clk 0:02:58.3]} 9... g5 {[%clk 0:03:04.2]} 10.
Ne1 {[%clk 0:02:55]} 10... Bg7 {[%clk 0:03:01.1]} 11. Nd3 {[%clk 0:02:50.4]}
11... O-O {[%clk 0:02:47.9]} 12. f4 {[%clk 0:02:46.9]} 12... f6 {[%clk
0:02:48.2]} 13. exf6 {[%clk 0:02:37.6]} 13... Bxf6 {[%clk 0:02:46.9]} 14. Ne5
{[%clk 0:02:32.8]} 14... Ng6 {[%clk 0:02:30.5]} 15. Ng4 {[%clk 0:02:20.2]} 15...
Kg7 {[%clk 0:02:08]} 16. Nxf6 {[%clk 0:02:19.2]} 16... Nxf6 {[%clk 0:02:08.7]}
17. fxg5 {[%clk 0:02:18.9]} 17... hxg5 {[%clk 0:02:09.7]} 18. Bxg5 {[%clk
0:02:20.5]} 18... Ne4 {[%clk 0:02:10.7]} 19. Qc1 {[%clk 0:02:06.1]} 19... Rh8
{[%clk 0:02:07.4]} 20. Bf4 {[%clk 0:02:02.5]} 20... e5 {[%clk 0:02:02]} 21. dxe5
{[%clk 0:01:58.8]} 21... Nxf4 {[%clk 0:01:22.3]} 22. Qxf4 {[%clk 0:01:58.2]}
22... Qb6+ {[%clk 0:01:22.4]} 23. Kh1 {[%clk 0:01:58.6]} 23... Rxh2+ {[%clk
0:01:12.7]} 24. Qxh2 {[%clk 0:01:57.3]} 24... Rh8 {[%clk 0:01:13.1]} 25. Bh5
{[%clk 0:01:42.1]} 25... Rxh5 {[%clk 0:00:50.1]} 26. Qxh5 {[%clk 0:01:40.9]}
26... Ng3+ {[%clk 0:00:50.3]} 27. Kh2 {[%clk 0:01:42.1]} 27... Nxh5 {[%clk
0:00:51]} 28. Rxf5 {[%clk 0:01:43.1]} 28... Kg6 {[%clk 0:00:49.6]} 29. Raf1
{[%clk 0:01:44.5]} 29... Qb4 {[%clk 0:00:39.5]} 30. R1f3 {[%clk 0:01:28]} 30...
Qxa4 {[%clk 0:00:28.3]} 31. Nc5 {[%clk 0:01:21.7]} 31... Qxc2 {[%clk 0:00:21.9]}
32. Nd3 {[%clk 0:01:21]} 32... Qe2 {[%clk 0:00:16.7]} 33. Rxh5 {[%clk
0:01:18.9]} 33... Qe4 {[%clk 0:00:15.9]} 34. Rhh3 {[%clk 0:01:08.3]} 34... c5
{[%clk 0:00:16.2]} 35. Rhg3+ {[%clk 0:01:08.7]} 35... Kh7 {[%clk 0:00:16]} 36.
Rf4 {[%clk 0:01:08.9]} 1-0

[Event "*** MasterClass Titled Tuesday Blitz"]
[Site "Chess.com"]
[Date "2017.12.05"]
[Round "5"]
[White "calemcc"]
[Black "visa"]
[Result "1-0"]
[WhiteElo "2281"]
[BlackElo "2179"]
[TimeControl "180+2"]
[EndTime "15:15:59 PST"]
[Termination "calemcc won by checkmate"]

1. d4 {[%clk 0:03:01.9]} 1... Nf6 {[%clk 0:02:57.2]} 2. c4 {[%clk 0:03:02.7]}
2... c5 {[%clk 0:02:57.7]} 3. Nf3 {[%clk 0:03:02.1]} 3... g6 {[%clk 0:02:54.9]}
4. Nc3 {[%clk 0:03:02.1]} 4... Bg7 {[%clk 0:02:55.9]} 5. e3 {[%clk 0:03:02.9]}
5... O-O {[%clk 0:02:56.2]} 6. Be2 {[%clk 0:03:04.2]} 6... b6 {[%clk 0:02:57.3]}
7. O-O {[%clk 0:03:05.1]} 7... Bb7 {[%clk 0:02:58.5]} 8. b3 {[%clk 0:03:06.4]}
8... Ne4 {[%clk 0:02:53.8]} 9. Bb2 {[%clk 0:03:05.3]} 9... cxd4 {[%clk
0:02:48.9]} 10. Nxd4 {[%clk 0:02:59.3]} 10... Nxc3 {[%clk 0:02:45.4]} 11. Bxc3
{[%clk 0:02:58.2]} 11... d5 {[%clk 0:02:46.5]} 12. Bf3 {[%clk 0:02:58.7]} 12...
e5 {[%clk 0:02:37.7]} 13. Nc2 {[%clk 0:02:57.4]} 13... e4 {[%clk 0:02:27.5]} 14.
Bxg7 {[%clk 0:02:56.6]} 14... Kxg7 {[%clk 0:02:14.6]} 15. Be2 {[%clk 0:02:56.3]}
15... dxc4 {[%clk 0:02:04.2]} 16. Bxc4 {[%clk 0:02:58.2]} 16... Nc6 {[%clk
0:02:01]} 17. Bd5 {[%clk 0:02:46.2]} 17... Qe7 {[%clk 0:01:56.6]} 18. Nd4 {[%clk
0:02:45.4]} 18... Ne5 {[%clk 0:01:51.6]} 19. Bxb7 {[%clk 0:02:44.9]} 19... Qxb7
{[%clk 0:01:52.1]} 20. Rc1 {[%clk 0:02:36.3]} 20... Rad8 {[%clk 0:01:49.9]} 21.
Qd2 {[%clk 0:02:12.3]} 21... Nc6 {[%clk 0:01:26.2]} 22. Rc4 {[%clk 0:01:53.3]}
22... b5 {[%clk 0:01:15.5]} 23. Qc3 {[%clk 0:01:52.9]} 23... Nxd4 {[%clk
0:00:45.6]} 24. Rxd4 {[%clk 0:01:51.7]} 24... Kg8 {[%clk 0:00:35.9]} 25. Rfd1
{[%clk 0:01:44.6]} 25... Rxd4 {[%clk 0:00:19.8]} 26. Rxd4 {[%clk 0:01:43.7]}
26... Rc8 {[%clk 0:00:19.6]} 27. Qd2 {[%clk 0:01:43.5]} 27... Qc6 {[%clk
0:00:18]} 28. h3 {[%clk 0:01:43]} 28... Qc1+ {[%clk 0:00:18.7]} 29. Kh2 {[%clk
0:01:44.1]} 29... Qxd2 {[%clk 0:00:17.8]} 30. Rxd2 {[%clk 0:01:46]} 30... Rc7
{[%clk 0:00:18.9]} 31. Kg3 {[%clk 0:01:46.7]} 31... f5 {[%clk 0:00:19.8]} 32.
Kf4 {[%clk 0:01:47.7]} 32... Kf7 {[%clk 0:00:21]} 33. f3 {[%clk 0:01:45.1]}
33... exf3 {[%clk 0:00:21.7]} 34. gxf3 {[%clk 0:01:47]} 34... Ke6 {[%clk
0:00:22.1]} 35. e4 {[%clk 0:01:46]} 35... fxe4 {[%clk 0:00:20.7]} 36. fxe4
{[%clk 0:01:47.9]} 36... Rc3 {[%clk 0:00:21.4]} 37. h4 {[%clk 0:01:45.1]} 37...
Rh3 {[%clk 0:00:22.1]} 38. Kg5 {[%clk 0:01:42.2]} 38... Rg3+ {[%clk 0:00:22.1]}
39. Kh6 {[%clk 0:01:41.8]} 39... Rg4 {[%clk 0:00:21.2]} 40. Kxh7 {[%clk
0:01:42.4]} 40... Rxh4+ {[%clk 0:00:22.2]} 41. Kxg6 {[%clk 0:01:43.5]} 41...
Rxe4 {[%clk 0:00:23.3]} 42. Kg5 {[%clk 0:01:43.2]} 42... Re5+ {[%clk 0:00:21.9]}
43. Kf4 {[%clk 0:01:43.5]} 43... Rd5 {[%clk 0:00:22.8]} 44. Rc2 {[%clk
0:01:41.9]} 44... Kd6 {[%clk 0:00:23.5]} 45. Ke4 {[%clk 0:01:42.7]} 45... Rc5
{[%clk 0:00:24.8]} 46. Rd2+ {[%clk 0:01:43.4]} 46... Kc6 {[%clk 0:00:26.1]} 47.
Rd8 {[%clk 0:01:44.6]} 47... Rc2 {[%clk 0:00:25.5]} 48. Rc8+ {[%clk 0:01:44.8]}
48... Kb7 {[%clk 0:00:16.1]} 49. Rxc2 {[%clk 0:01:46.7]} 49... b4 {[%clk
0:00:17.1]} 50. Kd4 {[%clk 0:01:47.4]} 50... Kb6 {[%clk 0:00:17.5]} 51. Kc4
{[%clk 0:01:49.3]} 51... a5 {[%clk 0:00:18.5]} 52. Rh2 {[%clk 0:01:51.2]} 52...
Ka6 {[%clk 0:00:19.5]} 53. Rh6+ {[%clk 0:01:53.1]} 53... Ka7 {[%clk 0:00:20.7]}
54. Kb5 {[%clk 0:01:55]} 54... Ka8 {[%clk 0:00:21.9]} 55. Kb6 {[%clk 0:01:55.7]}
55... a4 {[%clk 0:00:22.2]} 56. Rh8# {[%clk 0:01:57.5]} 1-0